bitfinex/quotes_ETHUSD_20260202
["timestamp","ask_amount","ask_price","bid_price","bid_amount"]
[1769999368195,0.01312996,2298.5,2297.5,1.08813915]
[1769999368496,1.54728855,2298.4,2297.5,1.0881356]
[1769999368806,1.54728855,2298.4,2297.3,2.00121189]
[1769999368968,1.54728855,2298.4,2297.4,1.088176]
[1769999369300,1.81340739,2298.4,2297.3,5.2659198]
[1769999369595,1.08776051,2298.3,2297.4,1.08815469]
[1769999369898,1.08776051,2298.3,2297.3,1.08923235]
[1769999370096,1.54728855,2298.2,2297.3,1.08923235]
[1769999370471,1.54728855,2298.1,2297.3,1.08923235]
[1769999370672,1.54728855,2298.1,2297.4,0.54422031]
[1769999370872,1.54728855,2298.1,2297.3,1.08923235]
[1769999371498,2.63514663,2298.1,2297.3,0.001]
[1769999372477,1.54728855,2298.1,2297.6,0.001]
[1769999373574,1.08790252,2298.0,2297.6,0.001]
[1769999374480,14.96627787,2298.0,2297.3,0.001]
[1769999374774,0.01312996,2297.6,2297.0,0.001]
[1769999374985,0.01312996,2297.5,2297.0,0.001]
[1769999375601,1.54728855,2297.4,2297.0,0.001]
[1769999375794,1.08814135,2297.5,2297.0,0.001]
[1769999376175,1.54728855,2297.6,2297.0,0.001]
[1769999377012,2.63538146,2297.6,2297.0,0.001]
[1769999377396,3.33414173,2297.6,2296.6,1.0885657]
[1769999377713,0.9349681,2297.5,2296.5,0.001]
[1769999378086,1.54728855,2297.4,2296.5,0.001]
[1769999379592,2.63549554,2297.4,2296.5,0.001]
[1769999379800,2.6354754,2297.4,2296.5,0.001]
[1769999380114,2.63548343,2297.4,2296.5,1.92693677]
[1769999380484,1.54728855,2297.4,2296.5,1.92693677]
[1769999380708,2.63548017,2297.4,2296.5,1.92693677]
[1769999381110,2.63548011,2297.4,2296.5,1.92693677]
[1769999381411,1.54728855,2297.4,2296.5,1.92693677]
[1769999381613,2.63548448,2297.4,2296.7,1.0885183]
[1769999382387,2.63548202,2297.4,2296.7,1.0885183]
[1769999382710,2.63547671,2297.4,2296.7,1.0885183]
[1769999383013,1.54728855,2297.4,2296.7,1.0885183]
[1769999383411,0.9349681,2297.5,2296.7,14.61004035]
[1769999383588,0.912,2297.9,2296.9,14.60994557]
[1769999383785,1.54728855,2297.8,2296.9,14.60994557]
[1769999384185,0.912,2297.9,2296.9,14.60994557]
[1769999384388,1.54728855,2297.8,2296.9,14.60994557]
[1769999384589,1.54728855,2297.8,2297.0,1.15394694]
[1769999385624,1.54728855,2297.7,2297.0,1.15394694]
[1769999385914,1.08788645,2298.1,2297.1,1.08832876]
[1769999385915,1.54728855,2298.0,2297.1,1.08832876]
[1769999386793,0.01312996,2297.9,2297.1,1.08832876]
[1769999387121,0.01312996,2297.9,2297.1,1.08932876]
[1769999387425,0.0011,2297.7,2297.1,1.08932876]
[1769999388112,1.54728855,2297.6,2297.1,0.001]
[1769999388919,0.01312996,2297.5,2296.9,0.001]
[1769999389290,1.56041851,2297.4,2296.5,0.001]
[1769999389494,3.10993702,2297.4,2296.6,1.0885651]
[1769999389895,1.54728855,2297.4,2296.6,1.0885651]
[1769999390421,2.63547781,2297.4,2296.6,1.0885651]
[1769999390796,1.54728855,2297.4,2296.6,1.0885651]
[1769999391296,2.63547912,2297.4,2296.6,1.0885651]
[1769999391699,2.64860908,2297.4,2296.6,1.0885651]
[1769999391904,2.64860908,2297.4,2296.5,1.08958322]
[1769999391905,0.71457105,2297.3,2296.5,1.08958322]
[1769999392309,1.54728855,2297.2,2296.5,1.08958322]
[1769999392636,0.01312996,2297.2,2296.5,0.001]
[1769999392793,1.56041851,2297.1,2296.5,0.001]
[1769999393125,0.01312996,2297.0,2296.5,0.001]
[1769999393314,1.65384847,2297.0,2296.5,0.001]
[1769999393630,1.54728855,2296.9,2296.5,0.001]
[1769999393998,1.54728855,2296.9,2296.1,0.001]
[1769999393999,0.01312996,2296.7,2296.1,0.001]
[1769999394201,0.01312996,2296.5,2295.9,0.001]
[1769999394411,0.26168481,2296.5,2295.9,0.001]
[1769999394626,0.01312996,2296.4,2295.9,0.001]
[1769999394992,0.01312996,2296.4,2295.6,0.001]
[1769999394993,1.56041851,2296.3,2295.6,0.001]
[1769999395234,0.01312996,2296.2,2295.6,0.001]
[1769999395520,0.01312996,2295.8,2295.2,0.001]
[1769999395722,13.92163661,2296.0,2295.2,1.08922967]
[1769999395922,13.92163661,2296.0,2295.3,1.08916999]
[1769999395923,1.54528855,2295.8,2295.3,1.08916999]
[1769999396106,1.54528855,2295.8,2295.1,0.001]
[1769999396302,1.54528855,2295.7,2295.1,0.001]
[1769999396611,1.54528855,2296.1,2295.1,0.001]
[1769999396815,2.49165752,2296.1,2295.1,0.001]
[1769999397007,1.54528855,2296.1,2295.1,13.07749189]
[1769999397421,1.54528855,2296.1,2295.1,0.001]
[1769999398227,1.55841851,2296.1,2295.1,0.001]
[1769999398598,2.64722515,2296.1,2295.1,0.001]
[1769999400021,2.6472228,2296.1,2295.1,0.001]
[1769999400225,3.44126488,2296.1,2295.3,0.001]
[1769999400724,1.54528855,2296.1,2295.3,0.001]
[1769999401308,1.54528855,2296.1,2295.3,13.07749189]
[1769999401799,1.54528855,2296.1,2295.3,0.001]
[1769999402222,0.01312996,2295.9,2295.3,0.001]
[1769999402600,0.01312996,2295.5,2294.6,0.001]
[1769999402965,0.01312996,2295.5,2294.8,1.08940716]
[1769999403256,1.54328855,2295.4,2294.8,1.08940803]
[1769999403527,0.01312996,2296.2,2294.8,14.71072641]
[1769999403716,1.54328855,2296.1,2294.8,15.62372641]
[1769999403916,1.54328855,2296.3,2294.8,15.62372641]
[1769999404094,1.54328855,2296.5,2294.8,14.71072641]
[1769999404296,0.01312996,2296.1,2294.9,30.3883152]
[1769999404519,0.01312996,2296.3,2295.0,13.07649189]
[1769999404830,1.54328855,2296.3,2295.1,13.07649189]
[1769999405000,0.32273971,2296.9,2295.1,13.07649189]
[1769999405202,0.01422996,2297.2,2295.6,13.07649189]
[1769999405404,0.01422996,2297.2,2295.2,14.6024]
[1769999405405,0.01312996,2296.9,2295.8,13.07649189]
[1769999405603,0.01312996,2296.5,2295.7,1.30764919]
[1769999405903,0.01312996,2296.5,2295.5,0.913]
[1769999406204,0.01312996,2296.5,2295.7,1.08899246]
[1769999406404,0.01312996,2296.6,2295.7,1.08899246]
[1769999407036,0.01312996,2297.1,2295.7,1.08899246]
[1769999407360,0.01312996,2296.8,2295.7,1.08899246]
[1769999407535,0.01312996,2296.8,2295.8,0.54449623]
[1769999407860,0.01312996,2297.1,2295.8,0.54449623]
[1769999408142,0.01312996,2296.8,2295.8,0.54449623]
[1769999408310,0.01312996,2296.8,2295.9,1.0888976]
[1769999408514,0.01312996,2297.1,2295.9,1.0888976]
[1769999408717,0.01312996,2297.1,2296.0,0.59889842]
[1769999409136,0.01422996,2297.2,2296.0,13.36502749]
[1769999409835,0.01312996,2297.1,2296.0,13.36502749]
[1769999410137,0.01312996,2296.7,2295.9,1.0888976]
[1769999410340,0.01312996,2296.4,2295.9,1.0888976]
[1769999410513,0.01312996,2296.2,2295.7,1.08896999]
[1769999410716,0.01312996,2296.1,2295.8,1.08894045]
[1769999410914,0.01312996,2296.3,2295.8,1.08894045]
[1769999411109,0.01312996,2296.3,2295.8,1.6334295]
[1769999412114,0.01312996,2296.2,2295.7,1.08895919]
[1769999412314,0.01312996,2296.5,2295.6,4.35614452]
[1769999412513,0.01312996,2296.4,2295.6,4.35614452]
[1769999412753,0.92612996,2296.9,2295.6,17.12227359]
[1769999412915,0.01312996,2296.8,2295.9,0.001]
[1769999413110,0.92612996,2296.9,2295.9,0.001]
[1769999413319,0.0011,2296.7,2295.9,0.001]
[1769999413917,0.0011,2296.7,2295.9,12.76712907]
[1769999414219,0.0011,2296.7,2296.1,1.08880275]
[1769999414620,0.0011,2296.7,2296.2,0.913]
[1769999415653,0.0011,2296.9,2296.2,0.913]
[1769999416030,0.0011,2297.2,2296.2,13.67912907]
[1769999416222,0.0011,2297.9,2296.7,12.76612907]
[1769999416420,0.0011,2297.9,2296.8,15.07408727]
[1769999416621,0.0011,2297.9,2296.9,0.913]
[1769999417023,0.01312996,2297.6,2296.9,0.913]
[1769999417350,0.01312996,2297.6,2296.8,1.08847091]
[1769999417537,0.01312996,2297.7,2296.8,1.08847091]
[1769999417739,0.0011,2297.9,2296.9,0.54423546]
[1769999417944,0.0011,2297.9,2296.9,13.31036453]
[1769999418335,0.0011,2297.9,2297.0,1.08837614]
[1769999418529,0.01312996,2297.8,2297.0,1.08837614]
[1769999418734,0.01312996,2297.6,2296.9,1.08839079]
[1769999418934,0.01312996,2297.4,2296.8,1.08844705]
[1769999419529,0.01312996,2297.4,2296.9,1.08841832]
[1769999419726,0.01312996,2297.2,2296.2,4.35484864]
[1769999419933,0.01312996,2297.1,2296.6,1.08855925]
[1769999420435,1.10148449,2297.1,2296.3,2.80079152]
[1769999420641,1.10148449,2297.1,2296.2,0.913]
[1769999420642,0.01312996,2296.9,2296.2,2.0017199]
[1769999421045,0.01312996,2296.7,2296.1,1.08877207]
[1769999421245,0.01312996,2296.6,2296.1,1.08879694]
[1769999421768,0.01312996,2296.6,2295.9,0.001]
[1769999421769,0.01312996,2296.3,2295.9,0.001]
[1769999422056,0.01312996,2296.1,2295.6,0.001]
[1769999422266,0.01312996,2296.1,2295.6,1.09003218]
[1769999422564,0.01312996,2295.9,2295.6,0.001]
[1769999422769,0.01312996,2296.0,2295.6,0.001]
[1769999423062,0.01312996,2296.0,2295.0,7.23093061]
[1769999423063,0.01312996,2295.8,2295.0,3.05011216]
[1769999423248,0.01312996,2295.8,2295.0,1.08932057]
[1769999423249,0.01312996,2295.6,2295.0,1.08932057]
[1769999423441,0.01312996,2295.5,2294.9,1.0893633]
[1769999423767,0.01312996,2295.4,2294.5,5.27111239]
[1769999423932,0.01312996,2295.3,2294.7,1.09044284]
[1769999424255,0.01312996,2295.2,2294.7,0.001]
[1769999424454,0.01312996,2295.5,2294.7,0.001]
[1769999424762,0.01312996,2295.4,2294.7,0.001]
[1769999425750,0.01312996,2295.3,2294.7,0.001]
[1769999426126,0.01312996,2295.2,2294.7,0.001]
[1769999426328,0.01312996,2295.3,2294.7,0.001]
[1769999426528,0.01312996,2295.1,2294.7,0.001]
[1769999426753,0.01312996,2295.0,2294.4,0.001]
[1769999427142,0.01312996,2295.2,2294.4,0.001]
[1769999427550,0.01312996,2295.1,2294.4,0.001]
[1769999427736,0.01312996,2294.9,2294.4,0.001]
[1769999427942,0.01312996,2294.8,2294.4,0.001]
[1769999428138,0.01312996,2294.5,2294.1,0.001]
[1769999428338,0.01312996,2294.6,2294.1,0.001]
[1769999428541,0.01312996,2294.4,2294.1,0.001]
[1769999428740,0.01312996,2294.4,2293.3,1.09013212]
[1769999428929,0.01312996,2294.4,2293.2,1.09015113]
[1769999428930,0.01312996,2294.3,2293.2,1.09015113]
[1769999429133,0.01312996,2293.6,2293.1,0.001]
[1769999429363,0.01312996,2293.3,2292.9,1.09131856]
[1769999429540,0.32199983,2294.0,2293.2,1.09013962]
[1769999429730,0.01312996,2293.8,2293.2,1.09013962]
[1769999429934,0.30886987,2294.0,2293.2,1.09013962]
[1769999430233,0.30886987,2294.0,2293.2,2.07129731]
[1769999430234,0.01312996,2293.9,2293.2,2.07129731]
[1769999430434,0.32199983,2294.0,2293.2,2.07129731]
[1769999430435,0.30886987,2294.0,2293.2,2.07129731]
[1769999430634,0.01312996,2293.9,2293.2,2.07129731]
[1769999431432,0.32199983,2294.0,2293.2,2.07129731]
[1769999431433,0.30886987,2294.0,2293.2,2.07129731]
[1769999432259,0.01312996,2293.9,2293.2,2.07129731]
[1769999432464,0.01312996,2293.9,2292.9,1.09132229]
[1769999432465,0.01312996,2293.7,2292.9,1.09132229]
[1769999432852,0.01312996,2293.4,2292.9,1.09132229]
[1769999433241,0.01312996,2293.2,2292.9,0.001]
[1769999433441,0.01312996,2293.0,2292.6,1.09046435]
[1769999433765,0.01312996,2292.9,2292.6,1.09045705]
[1769999434260,0.01312996,2292.8,2292.6,1.09046251]
[1769999434557,0.01312996,2293.2,2292.1,4.3627872]
[1769999434864,0.01312996,2293.0,2292.2,1.91326191]
[1769999435043,0.01312996,2293.6,2292.2,14.67939098]
[1769999435242,0.01312996,2293.7,2292.2,14.67939098]
[1769999435565,4.68125804,2294.0,2292.2,14.67939098]
[1769999435566,0.32199983,2294.0,2292.2,14.67939098]
[1769999435739,0.01312996,2293.6,2292.3,14.67034689]
[1769999436160,0.01312996,2293.8,2292.3,14.67034689]
[1769999436363,0.32199983,2294.0,2292.3,14.67034689]
[1769999436364,0.30886987,2294.0,2292.3,14.67034689]
[1769999436552,0.01312996,2293.9,2292.5,12.76612907]
[1769999436865,0.01312996,2293.5,2292.4,1.09056011]
[1769999437165,0.01312996,2293.0,2292.4,1.09056011]
[1769999437366,0.01312996,2292.9,2292.4,1.09056011]
[1769999437866,0.01312996,2292.8,2292.4,1.09056011]
[1769999438564,0.01312996,2292.8,2292.3,1.0905848]
[1769999438747,0.01312996,2292.9,2292.3,1.0905848]
[1769999439060,0.01312996,2292.7,2292.3,1.0905848]
[1769999439292,0.30886987,2294.0,2292.7,13.89413433]
[1769999439437,0.01312996,2293.8,2292.8,0.914]
[1769999439637,0.01312996,2293.6,2292.8,0.914]
[1769999439969,0.01312996,2293.9,2292.8,0.914]
[1769999440289,0.30886987,2294.0,2292.8,14.80813433]
[1769999440441,0.30886987,2294.0,2292.9,1.48081343]
[1769999440641,0.30886987,2294.0,2293.0,1.09027474]
[1769999441164,1.39868182,2294.0,2293.0,1.09027474]
[1769999441363,0.01312996,2293.9,2293.0,1.09027474]
[1769999441582,0.01312996,2293.8,2293.0,1.09027474]
[1769999441875,0.32199983,2294.0,2293.0,1.72681211]
[1769999442046,0.30886987,2294.0,2293.0,1.72681211]
[1769999443034,0.32199983,2294.0,2293.0,1.72681211]
[1769999443242,0.01312996,2293.8,2293.0,1.09027474]
[1769999443555,0.32199983,2294.0,2293.0,1.09027474]
[1769999444479,0.30886987,2294.0,2293.0,1.09027474]
[1769999444664,0.30886987,2294.0,2292.9,4.36109899]
[1769999444867,0.32199983,2294.0,2292.9,4.36109899]
[1769999445072,0.32199983,2294.0,2293.0,0.63654213]
[1769999445771,1.41179962,2294.0,2293.0,0.63654213]
[1769999445972,0.01312996,2293.8,2293.0,0.63654213]
[1769999446466,0.01312996,2293.9,2293.0,0.63654213]
[1769999446640,0.01312996,2293.8,2293.1,1.0902272]
[1769999447049,0.01312996,2293.9,2293.1,1.0902272]
[1769999447246,0.01312996,2293.9,2293.1,2.13510491]
[1769999448472,0.30886987,2294.0,2293.1,2.13510491]
[1769999449747,0.32199983,2294.0,2293.1,2.13510491]
[1769999449947,0.30886987,2294.0,2293.1,2.13510491]
[1769999450155,0.30886987,2294.0,2293.1,16.00473927]
[1769999450355,0.01312996,2294.8,2293.1,16.00473927]
[1769999450356,1.10241246,2295.1,2293.4,13.86963436]
[1769999450559,0.01312996,2295.1,2293.6,13.86963436]
[1769999450756,0.01312996,2294.7,2293.7,1.08994201]
[1769999451176,0.01312996,2294.4,2293.7,1.08994201]
[1769999451479,0.01312996,2294.7,2293.7,1.08994201]
[1769999451654,0.01312996,2294.7,2293.8,0.54497101]
[1769999451976,0.01312996,2294.5,2293.7,1.08994201]
[1769999452354,0.01312996,2294.6,2293.7,1.08994201]
[1769999452555,0.01312996,2294.7,2293.7,1.08994201]
[1769999452855,0.01312996,2294.7,2293.6,4.35976806]
[1769999453481,0.01312996,2294.8,2293.6,4.35976806]
[1769999453775,0.01312996,2294.7,2293.7,0.96335361]
[1769999453979,0.01312996,2294.8,2293.7,0.96335361]
[1769999454877,0.01312996,2294.8,2293.8,1.08989449]
[1769999455247,0.0011,2294.9,2293.8,1.08989449]
[1769999455582,0.0011,2294.9,2293.9,0.64128261]
[1769999457276,0.0011,2294.9,2294.0,1.08979947]
[1769999457778,0.01312996,2294.7,2293.9,1.08980996]
[1769999458001,0.01312996,2294.4,2293.5,1.08999828]
[1769999458151,0.01312996,2294.4,2293.4,0.914]
[1769999458152,0.01312996,2294.2,2293.4,0.914]
[1769999458476,0.01312996,2294.2,2293.6,1.08996755]
[1769999458677,0.01312996,2294.2,2293.5,1.09002927]
[1769999458881,0.01312996,2294.2,2293.6,1.08998559]
[1769999459077,0.01312996,2294.6,2293.4,5.27432624]
[1769999459078,14.83744825,2294.7,2293.7,1.08991645]
[1769999459291,16.49802058,2294.6,2293.5,1.09003706]
[1769999459880,16.49802058,2294.6,2293.4,0.914]
[1769999460087,16.49802058,2294.6,2293.4,2.00408187]
[1769999460393,16.49802058,2294.6,2293.4,1.09008295]
[1769999460681,13.92344825,2294.4,2292.6,0.001]
[1769999460895,16.74053894,2294.5,2292.6,3.351]
[1769999460896,13.92344825,2294.0,2292.6,3.351]
[1769999461054,13.92344825,2293.8,2292.6,3.351]
[1769999461253,15.01343778,2293.6,2292.6,3.351]
[1769999461495,13.92344825,2293.2,2291.8,0.001]
[1769999461679,13.92344825,2293.0,2292.0,1.0907247]
[1769999461985,13.92344825,2293.0,2291.8,0.001]
[1769999462186,13.92344825,2293.0,2291.8,1.09183667]
[1769999462385,13.92344825,2293.0,2291.8,1.09181251]
[1769999462591,13.93657821,2292.9,2291.8,0.001]
[1769999462884,1.39365782,2292.8,2291.8,0.001]
[1769999463070,1.40678778,2292.8,2291.8,0.001]
[1769999463389,15.02699562,2292.7,2291.8,0.001]
[1769999463687,0.01312996,2292.6,2291.8,0.001]
[1769999463874,1.10354737,2292.7,2291.8,0.001]
[1769999464079,0.68720048,2292.6,2291.8,0.001]
[1769999464280,0.01312996,2292.5,2291.8,0.001]
[1769999464684,0.92712996,2292.5,2291.8,0.001]
[1769999465290,0.914,2292.5,2291.8,0.001]
[1769999465473,2.00451307,2292.5,2291.8,0.001]
[1769999465662,0.914,2292.5,2291.8,0.001]
[1769999465859,2.00451354,2292.5,2291.8,0.001]
[1769999466059,2.64114462,2292.5,2291.8,0.001]
[1769999467080,0.01312996,2292.4,2291.8,0.001]
[1769999467698,1.09060768,2292.3,2291.8,0.001]
[1769999468982,1.09060768,2292.3,2291.4,0.001]
[1769999469197,1.09060768,2292.3,2291.1,4.36469094]
[1769999469198,0.01312996,2292.2,2291.1,1.0911789]
[1769999469367,0.01312996,2292.2,2290.5,18.2304277]
[1769999469368,0.01312996,2292.1,2290.5,18.2304277]
[1769999469563,1.81809256,2292.2,2291.0,14.95596874]
[1769999469867,1.09060768,2292.3,2291.0,14.95596874]
[1769999470093,2.64116403,2292.5,2291.0,14.95596874]
[1769999470392,0.01312996,2292.4,2291.0,14.95596874]
[1769999470593,12.70178663,2292.2,2291.0,1.09122405]
[1769999470787,0.01312996,2292.1,2291.0,1.09122405]
[1769999470981,1.27280466,2292.1,2291.0,14.95596874]
[1769999471185,0.01312996,2292.3,2291.0,14.95596874]
[1769999471572,1.55063108,2292.5,2291.0,14.95596874]
[1769999471777,2.00451743,2292.5,2291.0,14.95596874]
[1769999471988,0.914,2292.5,2291.0,14.95596874]
[1769999472296,2.00451973,2292.5,2291.1,13.86474469]
[1769999472463,0.914,2292.5,2291.1,13.86474469]
[1769999473008,2.00451269,2292.5,2291.1,13.86474469]
[1769999473177,2.00451269,2292.5,2291.2,2.94559687]
[1769999473676,0.914,2292.5,2291.2,16.81034156]
[1769999473876,0.914,2292.5,2291.3,1.09108366]
[1769999474102,1.09035043,2292.9,2291.4,13.86474469]
[1769999474263,0.914,2293.1,2291.6,13.86474469]
[1769999474469,0.01312996,2292.9,2291.5,1.49558284]
[1769999474696,0.01312996,2293.0,2291.4,14.77874469]
[1769999475376,2.00423191,2293.1,2291.4,14.77874469]
[1769999475568,0.914,2293.1,2291.4,14.77874469]
[1769999475772,0.01312996,2293.0,2291.4,14.77874469]
[1769999475971,1.10345225,2292.9,2291.5,1.09098843]
[1769999476274,0.54778714,2292.8,2291.8,0.001]
[1769999477122,0.0011,2292.9,2291.8,13.86574469]
[1769999477284,0.0011,2292.9,2291.8,0.001]
[1769999478498,0.01312996,2292.8,2291.8,0.001]
[1769999479071,0.01312996,2292.7,2291.8,0.001]
[1769999479470,0.01312996,2292.8,2291.8,0.001]
[1769999479781,0.0011,2292.9,2291.8,0.54654661]
[1769999480302,0.0011,2292.9,2291.9,1.09079802]
[1769999480597,0.0011,2292.9,2291.9,14.95554271]
[1769999480776,0.0011,2292.9,2291.9,1.09079802]
[1769999482485,0.0011,2292.9,2291.9,14.95554271]
[1769999482683,0.0011,2292.9,2292.0,1.98652814]
[1769999483571,0.0011,2292.9,2292.0,15.85127283]
[1769999483778,0.0011,2293.1,2292.1,14.77874469]
[1769999484380,0.0011,2293.1,2292.2,1.09065526]
[1769999484981,0.0011,2293.1,2292.2,14.95539995]
[1769999485705,0.0011,2293.1,2292.1,1.09069316]
[1769999485706,0.01312996,2292.9,2292.1,1.09069316]
[1769999486006,0.01312996,2293.0,2292.0,1.09071903]
[1769999486189,0.01312996,2293.0,2291.9,4.36311345]
[1769999486190,0.01312996,2292.9,2292.1,1.09069955]
[1769999486596,1.10349098,2292.9,2291.8,0.001]
[1769999486796,0.54777684,2292.8,2291.8,0.001]
[1769999487891,0.01312996,2292.6,2291.8,0.001]
[1769999488683,0.01312996,2292.4,2291.8,0.001]
[1769999488880,0.01312996,2292.2,2291.5,0.001]
[1769999489194,0.01312996,2292.0,2291.1,1.09114628]
[1769999489706,0.01312996,2292.1,2291.4,0.001]
[1769999489912,1.37733462,2292.1,2291.4,0.001]
[1769999490282,0.01312996,2291.8,2290.7,1.09134783]
[1769999490518,0.01312996,2291.7,2290.8,1.09128867]
[1769999490710,1.10407078,2291.6,2290.6,4.36660268]
[1769999490911,1.09092556,2291.7,2290.6,4.36660268]
[1769999491111,0.54543804,2291.6,2290.7,0.63720198]
[1769999491417,0.54543804,2291.6,2290.6,4.36660268]
[1769999491915,0.54543804,2291.6,2290.7,13.86474469]
[1769999492123,1.09067087,2292.2,2290.7,13.86474469]
[1769999492310,1.09045587,2292.7,2290.7,13.86474469]
[1769999492490,1.09045587,2292.7,2291.0,13.86474469]
[1769999492687,0.54777684,2292.8,2291.2,13.86474469]
[1769999492897,0.0011,2292.9,2291.4,13.86474469]
[1769999493100,0.0011,2292.9,2291.6,13.86474469]
[1769999493591,0.0011,2293.1,2292.1,13.86474469]
[1769999493912,0.0011,2293.1,2292.1,29.27874469]
[1769999494484,0.0011,2293.1,2292.2,13.86474469]
[1769999494691,2.00390614,2293.8,2292.4,13.86474469]
[1769999494890,2.00390614,2293.8,2292.5,1.49553524]
[1769999495120,0.914,2293.8,2292.5,15.36027993]
[1769999495414,0.0011,2294.1,2292.5,15.36027993]
[1769999495617,0.0011,2294.1,2292.6,13.86474469]
[1769999495817,0.0011,2294.1,2293.1,13.86474469]
[1769999495993,0.0011,2294.5,2293.2,14.79187465]
[1769999496333,0.0011,2294.7,2293.5,13.86474469]
[1769999496688,0.0011,2294.7,2293.7,13.86474469]
[1769999496926,0.31194501,2295.5,2294.1,13.86474469]
[1769999497088,1e-08,2295.5,2294.3,13.86474469]
[1769999497591,1e-08,2295.5,2294.4,0.914]
[1769999497791,1e-08,2295.5,2294.4,14.23170664]
[1769999497988,0.0011,2295.7,2294.6,13.31770664]
[1769999498211,0.0011,2296.1,2294.7,13.31770664]
[1769999498391,0.0011,2296.1,2294.9,13.31770664]
[1769999498704,0.0011,2296.1,2295.1,1.08927715]
[1769999499688,0.0011,2296.1,2295.0,2.00332104]
[1769999499891,0.01312996,2295.7,2294.3,4.35848865]
[1769999500111,0.01312996,2294.9,2294.0,1.08978641]
[1769999500290,0.01312996,2294.8,2293.9,1.08981491]
[1769999500498,0.01312996,2294.5,2293.5,1.09003358]
[1769999500819,0.01312996,2294.3,2293.4,1.09008459]
[1769999501393,0.01312996,2294.3,2294.0,0.001]
[1769999501593,0.01312996,2294.3,2293.1,1.60825166]
[1769999501594,0.01312996,2294.1,2293.1,1.78447636]
[1769999501793,0.01312996,2293.9,2293.1,1.78447257]
[1769999502015,0.01312996,2294.1,2293.3,1.09012457]
[1769999502219,0.01312996,2294.1,2293.3,1.63518988]
[1769999502521,0.01312996,2294.3,2293.8,0.001]
[1769999502820,0.01312996,2294.2,2293.3,1.63518988]
[1769999503025,0.01312996,2294.6,2293.3,1.63518988]
[1769999503438,1.10255799,2294.8,2293.3,14.95289652]
[1769999503616,1.10255799,2294.8,2293.4,1.9313425]
[1769999503811,0.01312996,2294.7,2293.4,1.9313425]
[1769999504010,0.01312996,2294.6,2293.4,2.8453425]
[1769999504325,0.01312996,2294.8,2293.4,16.16304914]
[1769999504724,0.01312996,2294.6,2293.5,1.09003706]
[1769999505023,1.10245766,2295.0,2293.6,16.14932234]
[1769999505191,0.01312996,2295.0,2293.6,16.14932234]
[1769999505397,0.914,2295.1,2293.6,16.14932234]
[1769999505596,1.10341896,2295.3,2293.6,16.14932234]
[1769999505908,1.10341896,2295.3,2293.8,13.31770664]
[1769999506115,0.0011,2295.3,2293.9,13.86277195]
[1769999506827,0.0011,2295.3,2294.2,1.08970447]
[1769999507122,0.0011,2295.3,2294.3,0.914]
[1769999507123,0.01312996,2295.2,2294.3,0.914]
[1769999507323,0.01312996,2295.1,2294.3,0.914]
[1769999507521,0.01422996,2295.3,2294.3,0.914]
[1769999507823,0.01422996,2295.3,2294.3,1.55025224]
[1769999507824,0.0011,2295.3,2294.3,1.55025224]
[1769999508912,0.01312996,2295.2,2294.3,2.63990431]
[1769999509093,0.01312996,2295.2,2294.3,2.00365207]
[1769999509692,0.01312996,2295.0,2294.3,2.00364189]
[1769999510117,0.0011,2295.3,2294.3,2.00364189]
[1769999511441,0.0011,2295.3,2294.3,14.95726075]
[1769999511734,0.0011,2295.5,2294.3,14.95726075]
[1769999511914,1.10306217,2296.1,2294.5,12.95361886]
[1769999512926,1.10306217,2296.1,2294.7,12.95361886]
[1769999513097,1.10303532,2296.1,2294.7,12.95361886]
[1769999513698,1.10303532,2296.1,2294.6,1.08951451]
[1769999513699,0.01312996,2295.8,2294.6,1.08951451]
[1769999513939,0.01312996,2295.7,2294.6,2.00351451]
[1769999514138,0.01312996,2295.7,2294.7,0.63615726]
[1769999514549,0.01312996,2295.9,2294.7,0.63615726]
[1769999514835,1.10221525,2295.6,2294.8,1.08941955]
[1769999515127,0.01312996,2295.6,2294.8,1.08941955]
[1769999515826,1.1021811,2295.6,2294.8,1.08941955]
[1769999516128,0.01312996,2295.5,2294.7,1.089436]
[1769999516299,1.65060755,2295.6,2294.7,1.089436]
[1769999516930,1.65060755,2295.6,2294.5,1.08956199]
[1769999517333,0.54842645,2295.6,2294.5,1.08956199]
[1769999517499,1.08902629,2295.7,2294.6,0.73793331]
[1769999517830,1.10215625,2295.7,2294.6,0.73793331]
[1769999519234,0.0011,2295.9,2294.7,14.06308589]
[1769999519415,0.0011,2295.9,2294.9,12.95361886]
[1769999519727,0.0011,2295.9,2295.1,12.95361886]
[1769999519931,0.0011,2295.9,2295.2,1.38666189]
[1769999520307,0.0011,2296.1,2295.2,1.38666189]
[1769999520308,0.0011,2296.1,2295.2,14.34028075]
[1769999520629,0.0011,2296.5,2295.4,12.95361886]
[1769999520818,0.0011,2297.1,2295.3,13.28958916]
[1769999521008,0.0011,2297.1,2295.5,12.96674882]
[1769999521335,0.01312996,2296.9,2295.6,2.34112571]
[1769999521634,0.0011,2297.1,2295.7,13.86661886]
[1769999521844,0.01312996,2297.0,2295.7,13.86661886]
[1769999522004,0.0011,2297.1,2295.7,13.86661886]
[1769999522208,0.0011,2297.1,2295.8,14.57439332]
[1769999522525,0.0011,2297.3,2296.2,12.95361886]
[1769999522841,0.0011,2297.9,2296.6,12.96674882]
[1769999523069,1.08906042,2297.9,2296.7,0.913]
[1769999523239,1.08906042,2297.9,2296.8,1.08847091]
[1769999523240,0.0011,2297.9,2296.8,1.08847091]
[1769999523607,0.0011,2297.9,2296.8,2.06809473]
[1769999523948,0.0011,2298.4,2297.2,12.95361886]
[1769999524232,0.0011,2298.4,2297.3,13.86661886]
[1769999524436,0.0011,2298.4,2297.5,12.95361886]
[1769999524734,0.0011,2298.9,2297.5,12.95361886]
[1769999524735,1.08859161,2298.9,2297.5,12.95361886]
[1769999524905,1.63244213,2298.9,2297.6,1.29536189]
[1769999525112,1.10070119,2298.7,2297.7,1.08804456]
[1769999525336,0.01312996,2298.5,2297.4,0.913]
[1769999525511,0.01312996,2298.4,2297.5,1.08813026]
[1769999525839,0.01312996,2298.8,2297.6,1.08806451]
[1769999526049,0.0011,2298.9,2297.6,14.04168337]
[1769999526962,1.08858212,2298.9,2297.6,14.04168337]
[1769999527130,0.01312996,2298.8,2297.6,2.00106451]
[1769999527334,0.01422996,2298.9,2297.6,14.95468337]
[1769999527557,0.01422996,2298.9,2297.7,1.99426132]
[1769999527558,0.01312996,2298.8,2297.7,1.99426132]
[1769999527774,0.0011,2297.9,2297.7,1.99426132]
[1769999527974,0.56068124,2298.9,2297.6,2.00106451]
[1769999528169,0.01312996,2298.8,2297.6,2.00106451]
[1769999528470,0.56068124,2298.9,2297.6,2.00106451]